[Event "Sunway Sitges Chess Festival"]
[Date "2024.12.21"]
[White "Ilamparthi A R"]
[Black "Hess, Max"]
[WhiteElo "2391"]
[BlackElo "2385"]
[Round "9.7"]
[Result "1-0"]
[TimeControl "40/5400+30:1800+30"]

1. e4 {[%clk 1:30:56]} 1... c6 {[%clk 1:30:02]} 2. d4 {[%clk 1:31:13]} 2... d5
{[%clk 1:30:25]} 3. e5 {[%clk 1:31:39]} 3... Bf5 {[%clk 1:30:50]} 4. Nf3 {[%clk
1:32:02]} 4... e6 {[%clk 1:31:07]} 5. Be2 {[%clk 1:32:27]} 5... c5 {[%clk
1:31:20]} 6. c3 {[%clk 1:32:48]} 6... Nc6 {[%clk 1:31:39]} 7. O-O {[%clk
1:33:10]} 7... Bg4 {[%clk 1:31:13]} 8. Nbd2 {[%clk 1:32:45]} 8... cxd4 {[%clk
1:30:57]} 9. Nxd4 {[%clk 1:31:18]} 9... Bxe2 {[%clk 1:30:46]} 10. Qxe2 {[%clk
1:31:46]} 10... Nxd4 {[%clk 1:31:09]} 11. cxd4 {[%clk 1:32:08]} 11... Ne7 {[%clk
1:31:34]} 12. Nf3 {[%clk 1:30:44]} 12... Nc6 {[%clk 1:31:51]} 13. Bd2 {[%clk
1:28:19]} 13... Qb6 {[%clk 1:25:27]} 14. a3 {[%clk 1:22:53]} 14... Be7 {[%clk
1:21:58]} 15. Bc3 {[%clk 1:17:56]} 15... Qa6 {[%clk 1:07:12]} 16. Qe3 {[%clk
1:04:17]} 16... O-O {[%clk 1:06:33]} 17. Nd2 {[%clk 1:02:28]} 17... Kh8 {[%clk
0:52:54]} 18. f4 {[%clk 0:58:04]} 18... f5 {[%clk 0:48:25]} 19. exf6 {[%clk
0:57:42]} 19... Bxf6 {[%clk 0:40:00]} 20. Nf3 {[%clk 0:53:42]} 20... Rae8 {[%clk
0:37:18]} 21. Rae1 {[%clk 0:51:58]} 21... Qa4 {[%clk 0:37:01]} 22. Qd3 {[%clk
0:38:34]} 22... Qc4 {[%clk 0:35:33]} 23. Qd2 {[%clk 0:38:27]} 23... a5 {[%clk
0:32:16]} 24. Re3 {[%clk 0:36:43]} 24... Qa4 {[%clk 0:27:20]} 25. Rfe1 {[%clk
0:27:06]} 25... b5 {[%clk 0:24:20]} 26. Qd3 {[%clk 0:23:44]} 26... b4 {[%clk
0:21:31]} 27. Bd2 {[%clk 0:24:07]} 27... Rb8 {[%clk 0:17:40]} 28. Rc1 {[%clk
0:18:47]} 28... Nd8 {[%clk 0:11:06]} 29. Rc7 {[%clk 0:15:58]} 29... bxa3 {[%clk
0:10:46]} 30. Qxa3 {[%clk 0:15:08]} 30... Qxa3 {[%clk 0:10:53]} 31. bxa3 {[%clk
0:15:35]} 31... Rb1+ {[%clk 0:09:00]} 32. Re1 {[%clk 0:13:10]} 32... Rxe1+
{[%clk 0:07:10]} 33. Bxe1 {[%clk 0:13:39]} 33... a4 {[%clk 0:06:31]} 34. Bb4
{[%clk 0:13:59]} 34... Rg8 {[%clk 0:02:14]} 35. g4 {[%clk 0:13:10]} 35... g6
{[%clk 0:00:45]} 36. g5 {[%clk 0:11:12]} 36... Bg7 {[%clk 0:01:13]} 37. Ne5
{[%clk 0:07:03]} 37... Bf8 {[%clk 0:01:34]} 38. Bc5 {[%clk 0:04:15]} 38... Bg7
{[%clk 0:00:54]} 39. Kf2 {[%clk 0:03:37]} 39... Bf8 {[%clk 0:01:18]} 40. Ke3
{[%clk 0:33:52]} 40... Bg7 {[%clk 0:31:27]} 41. h4 {[%clk 0:33:51]} 1-0

[Variant "Standard"]
[Site "Europe Echecs"]

[Event "Sunway Sitges Chess Festival"]
[Date "2024.12.21"]
[White "Anwesh, Upadhyaya"]
[Black "Lopez Martinez, Josep Manuel"]
[WhiteElo "2379"]
[BlackElo "2455"]
[Round "9.8"]
[Result "1/2-1/2"]
[TimeControl "40/5400+30:1800+30"]

1. d4 {[%clk 1:25:37]} 1... d5 {[%clk 1:28:46]} 2. Nf3 {[%clk 1:25:47]} 2... Nf6
{[%clk 1:27:11]} 3. c4 {[%clk 1:26:06]} 3... e6 {[%clk 1:27:11]} 4. g3 {[%clk
1:26:23]} 4... Be7 {[%clk 1:22:21]} 5. Bg2 {[%clk 1:26:42]} 5... O-O {[%clk
1:22:42]} 6. O-O {[%clk 1:27:05]} 6... dxc4 {[%clk 1:22:45]} 7. Qc2 {[%clk
1:25:18]} 7... a6 {[%clk 1:22:44]} 8. Qxc4 {[%clk 1:25:10]} 8... b5 {[%clk
1:23:01]} 9. Qc2 {[%clk 1:25:34]} 9... Bb7 {[%clk 1:23:26]} 10. Bd2 {[%clk
1:25:55]} 10... Be4 {[%clk 1:22:37]} 11. Qc1 {[%clk 1:26:17]} 11... Bb7 {[%clk
1:13:46]} 12. Bf4 {[%clk 1:25:48]} 12... Bd6 {[%clk 1:13:42]} 13. Nbd2 {[%clk
1:25:38]} 13... Nbd7 {[%clk 1:10:00]} 14. Nb3 {[%clk 1:24:49]} 14... Bd5 {[%clk
1:10:08]} 15. Rd1 {[%clk 1:21:08]} 15... Qe7 {[%clk 0:58:15]} 16. Ne5 {[%clk
1:13:52]} 16... Bxg2 {[%clk 0:57:53]} 17. Kxg2 {[%clk 1:14:13]} 17... Nd5 {[%clk
0:58:10]} 18. Na5 {[%clk 0:57:22]} 18... Nxf4+ {[%clk 0:55:30]} 19. gxf4 {[%clk
0:53:47]} 19... Nb6 {[%clk 0:55:04]} 20. Kh1 {[%clk 0:45:30]} 20... Qh4 {[%clk
0:44:22]} 21. Nd3 {[%clk 0:42:37]} 21... Nc4 {[%clk 0:29:15]} 22. Nc6 {[%clk
0:30:33]} 22... Qh5 {[%clk 0:28:35]} 23. f3 {[%clk 0:30:43]} 23... f6 {[%clk
0:25:20]} 24. b3 {[%clk 0:27:25]} 24... Nb6 {[%clk 0:25:35]} 25. Rf1 {[%clk
0:20:39]} 25... f5 {[%clk 0:22:16]} 26. Qd2 {[%clk 0:15:55]} 26... Kh8 {[%clk
0:20:50]} 27. e3 {[%clk 0:13:10]} 27... Qe8 {[%clk 0:16:34]} 28. Rac1 {[%clk
0:12:57]} 28... Nd5 {[%clk 0:08:37]} 29. Rg1 {[%clk 0:11:34]} 29... a5 {[%clk
0:08:36]} 30. Rg3 {[%clk 0:10:58]} 30... b4 {[%clk 0:08:45]} 31. Nce5 {[%clk
0:09:33]} 31... Rf6 {[%clk 0:06:27]} 32. Rcg1 {[%clk 0:08:05]} 32... Bf8 {[%clk
0:06:43]} 33. Nc5 {[%clk 0:05:27]} 33... Rd8 {[%clk 0:07:05]} 34. Qf2 {[%clk
0:04:45]} 34... Rh6 {[%clk 0:04:40]} 35. Rg5 {[%clk 0:04:19]} 35... g6 {[%clk
0:04:20]} 36. Qe2 {[%clk 0:01:51]} 36... Bxc5 {[%clk 0:02:25]} 37. dxc5 {[%clk
0:02:17]} 37... Nc3 {[%clk 0:02:47]} 38. Qa6 {[%clk 0:01:34]} 38... Nd1 {[%clk
0:02:23]} 39. Qe2 {[%clk 0:00:47]} 39... Nc3 {[%clk 0:02:48]} 40. Qa6 {[%clk
0:30:49]} 40... Nd1 {[%clk 0:32:06]} 41. Qe2 {[%clk 0:22:01]} 41... Nc3 {[%clk
0:32:06]} 1/2-1/2

[Variant "Standard"]
[Site "Europe Echecs"]

[Event "Sunway Sitges Chess Festival"]
[Date "2024.12.21"]
[White "Tan, Jun Ying"]
[Black "Alekseenko, Kirill"]
[WhiteElo "2357"]
[BlackElo "2673"]
[Round "9.9"]
[Result "0-1"]
[TimeControl "40/5400+30:1800+30"]

1. d4 {[%clk 1:30:56]} 1... e6 {[%clk 1:26:13]} 2. c4 {[%clk 1:31:19]} 2... Nf6
{[%clk 1:25:05]} 3. Nc3 {[%clk 1:31:37]} 3... Bb4 {[%clk 1:25:24]} 4. e3 {[%clk
1:32:00]} 4... d5 {[%clk 1:24:14]} 5. Bd2 {[%clk 1:30:34]} 5... O-O {[%clk
1:23:33]} 6. Nf3 {[%clk 1:30:52]} 6... b6 {[%clk 1:23:01]} 7. cxd5 {[%clk
1:31:00]} 7... exd5 {[%clk 1:23:24]} 8. Rc1 {[%clk 1:31:09]} 8... Bd6 {[%clk
1:20:36]} 9. Nb5 {[%clk 1:28:51]} 9... c5 {[%clk 1:19:48]} 10. Nxd6 {[%clk
1:15:29]} 10... Qxd6 {[%clk 1:20:11]} 11. b3 {[%clk 1:15:04]} 11... Ne4 {[%clk
1:18:05]} 12. Be2 {[%clk 1:07:50]} 12... Nc6 {[%clk 1:06:07]} 13. O-O {[%clk
1:05:13]} 13... Bb7 {[%clk 0:58:27]} 14. Qc2 {[%clk 0:52:48]} 14... Rae8 {[%clk
0:55:11]} 15. Bc3 {[%clk 0:46:18]} 15... Re6 {[%clk 0:52:41]} 16. Qb2 {[%clk
0:43:49]} 16... Rfe8 {[%clk 0:50:32]} 17. dxc5 {[%clk 0:38:03]} 17... bxc5
{[%clk 0:50:30]} 18. Bxg7 {[%clk 0:37:42]} 18... Rg6 {[%clk 0:44:29]} 19. Nh4
{[%clk 0:37:02]} 19... d4 {[%clk 0:40:09]} 20. Nxg6 {[%clk 0:34:29]} 20... Qxg6
{[%clk 0:40:17]} 21. f3 {[%clk 0:26:24]} 21... Ng5 {[%clk 0:37:18]} 22. Bxd4
{[%clk 0:25:54]} 22... cxd4 {[%clk 0:35:19]} 23. exd4 {[%clk 0:26:10]} 23... Ne6
{[%clk 0:23:17]} 24. Kh1 {[%clk 0:18:39]} 24... Ncxd4 {[%clk 0:22:22]} 25. Rf2
{[%clk 0:14:33]} 25... Nf5 {[%clk 0:22:46]} 26. Bb5 {[%clk 0:08:39]} 26... Re7
{[%clk 0:17:41]} 27. Bc6 {[%clk 0:06:26]} 27... Bxc6 {[%clk 0:15:12]} 28. Rxc6
{[%clk 0:06:55]} 28... Re8 {[%clk 0:15:29]} 29. Re2 {[%clk 0:04:07]} 29... Rd8
{[%clk 0:15:22]} 30. Rd2 {[%clk 0:04:03]} 30... Re8 {[%clk 0:08:55]} 31. Re2
{[%clk 0:04:32]} 31... Qh5 {[%clk 0:07:31]} 32. Re5 {[%clk 0:02:47]} 32... Rd8
{[%clk 0:07:04]} 33. Rc1 {[%clk 0:02:32]} 33... Qg6 {[%clk 0:02:53]} 34. Re4
{[%clk 0:02:14]} 34... h5 {[%clk 0:02:53]} 35. Rce1 {[%clk 0:02:07]} 35... Qg5
{[%clk 0:02:29]} 36. Qf2 {[%clk 0:01:55]} 36... a6 {[%clk 0:01:23]} 37. b4
{[%clk 0:02:02]} 37... Rd2 {[%clk 0:00:57]} 38. R4e2 {[%clk 0:02:21]} 38... Rd3
{[%clk 0:00:43]} 39. Re5 {[%clk 0:01:27]} 39... Qg6 {[%clk 0:00:33]} 40. R5e4
{[%clk 0:30:41]} 40... Kh7 {[%clk 0:30:34]} 41. Qe2 {[%clk 0:26:14]} 41... Rd6
{[%clk 0:29:36]} 42. Qf2 {[%clk 0:25:56]} 42... Rc6 {[%clk 0:26:19]} 43. Qd2
{[%clk 0:20:21]} 43... Nfd4 {[%clk 0:18:53]} 44. Rc1 {[%clk 0:18:54]} 44... Rd6
{[%clk 0:19:15]} 45. Qf2 {[%clk 0:17:34]} 45... Nf5 {[%clk 0:16:10]} 46. Rce1
{[%clk 0:15:09]} 46... h4 {[%clk 0:15:53]} 47. Rg4 {[%clk 0:11:34]} 47... Qf6
{[%clk 0:16:11]} 48. h3 {[%clk 0:10:59]} 48... Nf8 {[%clk 0:13:44]} 49. a4
{[%clk 0:09:28]} 49... Ng6 {[%clk 0:13:50]} 50. Qc5 {[%clk 0:06:24]} 50... Rd2
{[%clk 0:12:21]} 51. Qc7 {[%clk 0:03:21]} 51... Ng3+ {[%clk 0:07:58]} 52. Kg1
{[%clk 0:02:20]} 52... Re2 {[%clk 0:06:34]} 53. Rxe2 {[%clk 0:01:01]} 53... Qa1+
{[%clk 0:04:54]} 54. Kf2 {[%clk 0:01:31]} 54... Qf1+ {[%clk 0:05:01]} 55. Ke3
{[%clk 0:02:00]} 55... Qxe2+ {[%clk 0:05:21]} 56. Kd4 {[%clk 0:02:29]} 56...
Nf5+ {[%clk 0:04:49]} 57. Kc3 {[%clk 0:00:37]} 57... Qe3+ {[%clk 0:02:59]} 58.
Kb2 {[%clk 0:01:06]} 58... Ne5 {[%clk 0:03:23]} 59. Qc2 {[%clk 0:00:38]} 59...
Nd3+ {[%clk 0:03:44]} 60. Ka2 {[%clk 0:00:39]} 60... Nd4 {[%clk 0:02:43]} 61.
Rxh4+ {[%clk 0:01:00]} 61... Kg7 {[%clk 0:01:13]} 62. Rg4+ {[%clk 0:01:26]}
62... Kh6 {[%clk 0:01:10]} 63. Rh4+ {[%clk 0:01:49]} 63... Kg5 {[%clk 0:01:18]}
64. Rg4+ {[%clk 0:02:11]} 64... Kh5 {[%clk 0:01:36]} 65. Qc3 {[%clk 0:01:22]}
65... Nc1+ {[%clk 0:00:44]} 66. Kb2 {[%clk 0:01:42]} 66... Qf2+ {[%clk 0:00:44]}
67. Kxc1 {[%clk 0:01:53]} 67... Ne2+ {[%clk 0:01:08]} 68. Kb2 {[%clk 0:02:19]}
68... Nxc3+ {[%clk 0:01:16]} 69. Kxc3 {[%clk 0:02:48]} 69... f5 {[%clk 0:01:26]}
70. Rd4 {[%clk 0:01:09]} 70... Qxg2 {[%clk 0:01:45]} 71. f4 {[%clk 0:01:21]}
71... Qa2 {[%clk 0:01:04]} 72. a5 {[%clk 0:01:28]} 72... Qe2 {[%clk 0:00:44]}
73. Rc4 {[%clk 0:00:38]} 73... Qe3+ {[%clk 0:01:04]} 74. Kc2 {[%clk 0:00:49]}
74... Qxh3 {[%clk 0:01:03]} 75. Rd4 {[%clk 0:00:39]} 75... Qe3 {[%clk 0:01:09]}
76. Rc4 {[%clk 0:00:41]} 76... Kg4 {[%clk 0:01:35]} 77. Kb2 {[%clk 0:00:38]}
77... Qd3 {[%clk 0:01:57]} 78. Rc3 {[%clk 0:00:46]} 78... Qd2+ {[%clk 0:02:11]}
79. Kb3 {[%clk 0:01:15]} 79... Kxf4 {[%clk 0:02:17]} 80. Rc4+ {[%clk 0:01:38]}
80... Ke3 {[%clk 0:02:17]} 81. Rc3+ {[%clk 0:01:57]} 81... Kd4 {[%clk 0:02:35]}
82. Rc4+ {[%clk 0:02:24]} 82... Kd3 {[%clk 0:02:35]} 83. Rc5 {[%clk 0:02:50]}
83... Qd1+ {[%clk 0:02:54]} 84. Kb2 {[%clk 0:03:11]} 84... Qe2+ {[%clk 0:02:56]}
85. Ka3 {[%clk 0:03:03]} 85... f4 {[%clk 0:03:16]} 86. b5 {[%clk 0:03:19]} 86...
Qe7 {[%clk 0:03:40]} 0-1

[Variant "Standard"]
[Site "Europe Echecs"]

[Event "Sunway Sitges Chess Festival"]
[Date "2024.12.21"]
[White "Song, Edward"]
[Black "Raczek, Krzysztof"]
[WhiteElo "2363"]
[BlackElo "2443"]
[Round "9.10"]
[Result "1/2-1/2"]
[TimeControl "40/5400+30:1800+30"]

1. e4 {[%clk 1:30:19]} 1... c6 {[%clk 1:29:17]} 2. d4 {[%clk 1:30:41]} 2... d5
{[%clk 1:29:44]} 3. Nc3 {[%clk 1:31:03]} 3... dxe4 {[%clk 1:30:02]} 4. Nxe4
{[%clk 1:31:29]} 4... Nf6 {[%clk 1:30:29]} 5. Nxf6+ {[%clk 1:31:51]} 5... exf6
{[%clk 1:30:58]} 6. c3 {[%clk 1:32:04]} 6... Bd6 {[%clk 1:31:23]} 7. Bd3 {[%clk
1:32:29]} 7... O-O {[%clk 1:31:50]} 8. Qc2 {[%clk 1:32:49]} 8... c5 {[%clk
1:29:13]} 9. Ne2 {[%clk 1:24:06]} 9... g6 {[%clk 1:29:37]} 10. Be3 {[%clk
1:22:05]} 10... Qc7 {[%clk 1:29:43]} 11. dxc5 {[%clk 1:21:10]} 11... Bxc5 {[%clk
1:30:11]} 12. Bxc5 {[%clk 1:21:24]} 12... Qxc5 {[%clk 1:30:40]} 13. O-O {[%clk
1:21:27]} 13... Nc6 {[%clk 1:31:09]} 14. Rad1 {[%clk 1:19:23]} 14... Rd8 {[%clk
1:14:03]} 15. Be4 {[%clk 1:12:41]} 15... Be6 {[%clk 1:11:52]} 16. b3 {[%clk
1:12:36]} 16... a5 {[%clk 1:04:27]} 17. Nf4 {[%clk 1:09:42]} 17... Bg4 {[%clk
0:54:17]} 18. Rd5 {[%clk 1:05:27]} 18... Rxd5 {[%clk 0:51:51]} 19. Nxd5 {[%clk
1:05:52]} 19... Kg7 {[%clk 0:47:28]} 20. h3 {[%clk 1:00:59]} 20... Bf5 {[%clk
0:37:49]} 21. Bxf5 {[%clk 0:59:43]} 21... Qxd5 {[%clk 0:38:17]} 22. Be4 {[%clk
1:00:05]} 22... Qe5 {[%clk 0:33:25]} 23. Bxc6 {[%clk 1:00:14]} 23... bxc6 {[%clk
0:33:53]} 24. Qd2 {[%clk 1:00:14]} 24... Re8 {[%clk 0:33:48]} 25. Rd1 {[%clk
1:00:29]} 25... Qf5 {[%clk 0:31:44]} 26. b4 {[%clk 0:53:34]} 26... axb4 {[%clk
0:28:19]} 27. cxb4 {[%clk 0:53:58]} 27... Ra8 {[%clk 0:28:29]} 28. Qb2 {[%clk
0:50:48]} 28... Qe5 {[%clk 0:19:26]} 29. Qb3 {[%clk 0:45:46]} 29... Qe6 {[%clk
0:15:01]} 30. Qxe6 {[%clk 0:45:46]} 30... fxe6 {[%clk 0:15:30]} 31. Rd7+ {[%clk
0:46:10]} 31... Kh6 {[%clk 0:14:07]} 32. Rd6 {[%clk 0:46:29]} 32... Rxa2 {[%clk
0:14:27]} 33. Rxe6 {[%clk 0:46:56]} 33... Rb2 {[%clk 0:13:09]} 34. Rxf6 {[%clk
0:46:44]} 34... Rxb4 {[%clk 0:13:33]} 35. Rxc6 {[%clk 0:47:12]} 35... Rb7 {[%clk
0:10:14]} 36. Rc5 {[%clk 0:45:35]} 36... Kg7 {[%clk 0:10:23]} 37. g4 {[%clk
0:46:02]} 37... h6 {[%clk 0:09:24]} 38. Kg2 {[%clk 0:40:45]} 38... g5 {[%clk
0:09:19]} 39. h4 {[%clk 0:41:07]} 39... Kg6 {[%clk 0:08:47]} 40. h5+ {[%clk
1:10:44]} 40... Kg7 {[%clk 0:39:08]} 41. Re5 {[%clk 1:11:10]} 41... Rb3 {[%clk
0:38:22]} 42. Re7+ {[%clk 1:11:32]} 42... Kg8 {[%clk 0:38:51]} 43. Re3 {[%clk
1:11:57]} 43... Rb4 {[%clk 0:39:04]} 44. Kf3 {[%clk 1:12:23]} 44... Rf4+ {[%clk
0:39:29]} 45. Kg3 {[%clk 1:12:50]} 45... Rb4 {[%clk 0:39:55]} 46. Rd3 {[%clk
1:12:36]} 46... Ra4 {[%clk 0:40:10]} 47. Rd2 {[%clk 1:12:50]} 47... Kg7 {[%clk
0:39:27]} 48. f3 {[%clk 1:13:17]} 48... Ra7 {[%clk 0:38:19]} 49. Kf2 {[%clk
1:13:43]} 49... Re7 {[%clk 0:38:37]} 50. Rd4 {[%clk 1:14:03]} 50... Kf6 {[%clk
0:37:22]} 51. Re4 {[%clk 1:13:53]} 51... Ra7 {[%clk 0:37:29]} 52. Re8 {[%clk
1:14:18]} 52... Kf7 {[%clk 0:37:26]} 53. Rd8 {[%clk 1:13:28]} 53... Re7 {[%clk
0:37:23]} 54. Rd3 {[%clk 1:13:20]} 54... Kf6 {[%clk 0:37:37]} 55. Rc3 {[%clk
1:13:29]} 55... Kf7 {[%clk 0:37:38]} 56. Re3 {[%clk 1:13:55]} 56... Ra7 {[%clk
0:38:01]} 57. Ke2 {[%clk 1:10:21]} 57... Ra2+ {[%clk 0:35:00]} 58. Kd3 {[%clk
1:14:46]} 58... Ra3+ {[%clk 0:34:58]} 59. Ke4 {[%clk 1:15:11]} 59... Ra4+ {[%clk
0:34:44]} 60. Kd5 {[%clk 1:15:36]} 60... Ra5+ {[%clk 0:32:38]} 61. Kd6 {[%clk
1:16:01]} 61... Ra6+ {[%clk 0:32:59]} 62. Kc5 {[%clk 1:16:28]} 62... Ra5+ {[%clk
0:32:15]} 63. Kb6 {[%clk 1:16:54]} 63... Ra1 {[%clk 0:31:15]} 64. Re5 {[%clk
1:17:20]} 64... Ra3 {[%clk 0:30:25]} 65. Rf5+ {[%clk 1:17:45]} 65... Kg7 {[%clk
0:28:33]} 66. Kb5 {[%clk 1:17:50]} 66... Rc3 {[%clk 0:28:43]} 67. Kb4 {[%clk
1:16:16]} 67... Re3 {[%clk 0:28:34]} 1/2-1/2

[Variant "Standard"]
[Site "Europe Echecs"]

[Event "Sunway Sitges Chess Festival"]
[Date "2024.12.21"]
[White "Arfan, Aditya Bagus"]
[Black "Liu, Xiangyi"]
[WhiteElo "2416"]
[BlackElo "2372"]
[Round "9.11"]
[Result "1/2-1/2"]
[TimeControl "40/5400+30:1800+30"]

1. e4 {[%clk 1:27:34]} 1... e6 {[%clk 1:17:29]} 2. d4 {[%clk 1:27:45]} 2... d5
{[%clk 1:17:52]} 3. e5 {[%clk 1:27:57]} 3... c5 {[%clk 1:18:19]} 4. c3 {[%clk
1:27:58]} 4... Nc6 {[%clk 1:18:38]} 5. Nf3 {[%clk 1:28:05]} 5... Bd7 {[%clk
1:19:00]} 6. Be2 {[%clk 1:27:59]} 6... Rc8 {[%clk 1:19:26]} 7. O-O {[%clk
1:27:42]} 7... a6 {[%clk 1:19:29]} 8. Nbd2 {[%clk 1:24:49]} 8... cxd4 {[%clk
1:13:37]} 9. cxd4 {[%clk 1:24:20]} 9... Nb4 {[%clk 1:00:12]} 10. Ne1 {[%clk
1:14:58]} 10... Qb6 {[%clk 0:45:54]} 11. Ndf3 {[%clk 1:05:00]} 11... Nc6 {[%clk
0:44:24]} 12. Nc2 {[%clk 1:03:35]} 12... Na7 {[%clk 0:44:04]} 13. Bd3 {[%clk
1:01:10]} 13... Bb5 {[%clk 0:37:37]} 14. a4 {[%clk 0:51:00]} 14... Bxd3 {[%clk
0:32:58]} 15. Qxd3 {[%clk 0:51:28]} 15... Ne7 {[%clk 0:32:06]} 16. b4 {[%clk
0:47:09]} 16... Nec6 {[%clk 0:28:37]} 17. Bd2 {[%clk 0:34:23]} 17... Bxb4 {[%clk
0:25:06]} 18. Rfb1 {[%clk 0:20:28]} 18... a5 {[%clk 0:25:25]} 19. Qb3 {[%clk
0:18:47]} 19... Rc7 {[%clk 0:23:16]} 20. h4 {[%clk 0:17:01]} 20... h6 {[%clk
0:23:00]} 21. Ra2 {[%clk 0:13:25]} 21... O-O {[%clk 0:21:31]} 22. Kh2 {[%clk
0:11:55]} 22... Rfc8 {[%clk 0:17:05]} 23. Nxb4 {[%clk 0:09:38]} 23... Nxb4
{[%clk 0:17:31]} 24. Bxb4 {[%clk 0:09:55]} 24... Qxb4 {[%clk 0:17:41]} 25. Qxb4
{[%clk 0:10:24]} 25... axb4 {[%clk 0:18:05]} 26. Rxb4 {[%clk 0:10:44]} 26... Nc6
{[%clk 0:16:38]} 27. Rb5 {[%clk 0:10:30]} 27... Ra8 {[%clk 0:16:31]} 28. a5
{[%clk 0:09:49]} 28... Ra7 {[%clk 0:14:37]} 29. Ra4 {[%clk 0:10:04]} 29... Ne7
{[%clk 0:11:58]} 30. Rab4 {[%clk 0:08:38]} 30... Nc6 {[%clk 0:12:13]} 31. Ra4
{[%clk 0:09:06]} 1/2-1/2

[Variant "Standard"]
[Site "Europe Echecs"]

[Event "Sunway Sitges Chess Festival"]
[Date "2024.12.21"]
[White "Kristoferitsch, Daniel"]
[Black "Atanasov, Anthony"]
[WhiteElo "2287"]
[BlackElo "2415"]
[Round "9.12"]
[Result "1/2-1/2"]
[TimeControl "40/5400+30:1800+30"]

1. d4 {[%clk 1:30:49]} 1... e6 {[%clk 1:30:39]} 2. c4 {[%clk 1:31:08]} 2... b6
{[%clk 1:30:37]} 3. a3 {[%clk 1:24:04]} 3... Bb7 {[%clk 1:28:20]} 4. Nc3 {[%clk
1:24:26]} 4... f5 {[%clk 1:25:23]} 5. d5 {[%clk 1:24:22]} 5... Nf6 {[%clk
1:22:40]} 6. g3 {[%clk 1:24:41]} 6... Na6 {[%clk 1:16:08]} 7. Bg2 {[%clk
1:14:32]} 7... Bd6 {[%clk 1:13:33]} 8. e4 {[%clk 1:07:55]} 8... fxe4 {[%clk
1:09:51]} 9. Nxe4 {[%clk 1:07:52]} 9... Nxe4 {[%clk 1:08:57]} 10. Bxe4 {[%clk
1:08:14]} 10... O-O {[%clk 1:08:12]} 11. Ne2 {[%clk 0:59:13]} 11... Nc5 {[%clk
1:01:02]} 12. Bg2 {[%clk 0:54:36]} 12... exd5 {[%clk 0:58:08]} 13. Bxd5+ {[%clk
0:49:02]} 13... Bxd5 {[%clk 0:57:40]} 14. Qxd5+ {[%clk 0:49:25]} 14... Kh8
{[%clk 0:57:50]} 15. Be3 {[%clk 0:45:57]} 15... Qf6 {[%clk 0:57:43]} 16. O-O
{[%clk 0:44:10]} 16... Qxb2 {[%clk 0:39:07]} 17. Nd4 {[%clk 0:42:27]} 17... Rae8
{[%clk 0:34:05]} 18. Rab1 {[%clk 0:39:07]} 18... Qxa3 {[%clk 0:32:44]} 19. Nb5
{[%clk 0:18:24]} 19... Qd3 {[%clk 0:22:49]} 20. Qxd3 {[%clk 0:18:45]} 20... Nxd3
{[%clk 0:23:17]} 21. Nxd6 {[%clk 0:18:52]} 21... cxd6 {[%clk 0:21:40]} 22. Rfd1
{[%clk 0:07:42]} 22... Ne5 {[%clk 0:23:37]} 23. Rxd6 {[%clk 0:07:51]} 23... Re7
{[%clk 0:10:39]} 24. c5 {[%clk 0:04:57]} 24... Nc4 {[%clk 0:10:47]} 25. Rd5
{[%clk 0:05:21]} 25... Nxe3 {[%clk 0:10:38]} 26. fxe3 {[%clk 0:04:31]} 26...
bxc5 {[%clk 0:08:34]} 27. Rb7 {[%clk 0:04:30]} 27... c4 {[%clk 0:07:14]} 28.
Rxa7 {[%clk 0:03:40]} 28... Rc8 {[%clk 0:02:37]} 29. Rc5 {[%clk 0:03:38]} 29...
Ree8 {[%clk 0:03:01]} 30. Rac7 {[%clk 0:00:49]} 30... Rb8 {[%clk 0:02:36]} 31.
Rxc4 {[%clk 0:01:06]} 31... Rxe3 {[%clk 0:02:46]} 32. Rb7 {[%clk 0:00:50]} 32...
Ree8 {[%clk 0:03:01]} 33. Rxd7 {[%clk 0:01:04]} 33... Rb1+ {[%clk 0:02:39]} 34.
Kg2 {[%clk 0:01:01]} 34... Rb2+ {[%clk 0:02:58]} 35. Kh3 {[%clk 0:01:11]} 35...
Rb6 {[%clk 0:01:50]} 1/2-1/2

[Variant "Standard"]
[Site "Europe Echecs"]

[Event "Sunway Sitges Chess Festival"]
[Date "2024.12.21"]
[White "Arkell, Keith C"]
[Black "Ivanchuk, Vasyl"]
[WhiteElo "2355"]
[BlackElo "2630"]
[Round "9.13"]
[Result "1/2-1/2"]
[TimeControl "40/5400+30:1800+30"]

1. d4 {[%clk 1:30:58]} 1... Nf6 {[%clk 1:30:54]} 2. Nf3 {[%clk 1:31:23]} 2... e6
{[%clk 1:31:18]} 3. c3 {[%clk 1:31:44]} 3... b6 {[%clk 1:30:06]} 4. Bg5 {[%clk
1:32:07]} 4... h6 {[%clk 1:26:46]} 5. Bh4 {[%clk 1:30:17]} 5... d6 {[%clk
1:22:05]} 6. Nbd2 {[%clk 1:27:32]} 6... Bb7 {[%clk 1:18:52]} 7. e3 {[%clk
1:25:36]} 7... Nbd7 {[%clk 1:17:33]} 8. h3 {[%clk 1:24:54]} 8... g6 {[%clk
1:16:21]} 9. Bd3 {[%clk 1:20:51]} 9... Bg7 {[%clk 1:16:17]} 10. Qe2 {[%clk
1:19:04]} 10... a6 {[%clk 1:15:06]} 11. Be4 {[%clk 1:12:13]} 11... c6 {[%clk
1:14:42]} 12. Bc2 {[%clk 1:05:07]} 12... Qc7 {[%clk 1:12:52]} 13. Bg3 {[%clk
1:02:31]} 13... c5 {[%clk 1:12:18]} 14. Nc4 {[%clk 0:56:46]} 14... Bf8 {[%clk
1:12:40]} 15. a4 {[%clk 0:46:47]} 15... Be7 {[%clk 1:13:04]} 16. O-O {[%clk
0:43:03]} 16... O-O {[%clk 1:13:04]} 17. Bd3 {[%clk 0:37:20]} 17... b5 {[%clk
1:09:13]} 18. axb5 {[%clk 0:36:46]} 18... axb5 {[%clk 1:09:42]} 19. Ncd2 {[%clk
0:33:48]} 19... c4 {[%clk 1:10:05]} 20. Bc2 {[%clk 0:34:12]} 20... e5 {[%clk
1:10:26]} 21. e4 {[%clk 0:32:51]} 21... Rfe8 {[%clk 1:10:06]} 22. Qe3 {[%clk
0:32:39]} 22... Bf8 {[%clk 1:10:10]} 23. Rfc1 {[%clk 0:28:32]} 23... Qb6 {[%clk
1:02:21]} 24. Rxa8 {[%clk 0:24:31]} 24... Bxa8 {[%clk 1:01:27]} 25. Re1 {[%clk
0:18:56]} 25... Bb7 {[%clk 0:56:06]} 26. dxe5 {[%clk 0:17:35]} 26... Qxe3 {[%clk
0:56:32]} 27. Rxe3 {[%clk 0:18:00]} 27... dxe5 {[%clk 0:56:55]} 28. Re1 {[%clk
0:18:25]} 28... Bd6 {[%clk 0:45:35]} 29. Rd1 {[%clk 0:11:08]} 29... Bb8 {[%clk
0:40:03]} 30. Nh2 {[%clk 0:09:32]} 30... Nh5 {[%clk 0:32:58]} 31. Nxc4 {[%clk
0:06:50]} 31... bxc4 {[%clk 0:33:20]} 32. Rxd7 {[%clk 0:07:17]} 32... Bc6 {[%clk
0:33:44]} 33. Rd1 {[%clk 0:07:14]} 33... Nxg3 {[%clk 0:33:49]} 34. fxg3 {[%clk
0:07:38]} 34... Ba7+ {[%clk 0:33:56]} 35. Kf1 {[%clk 0:07:57]} 35... Rb8 {[%clk
0:32:03]} 36. Rb1 {[%clk 0:08:00]} 36... Rb5 {[%clk 0:29:52]} 37. Nf3 {[%clk
0:07:14]} 37... Ra5 {[%clk 0:30:20]} 1/2-1/2

[Variant "Standard"]
[Site "Europe Echecs"]